[Event "ROU-chT 1st League 2019"]
[Site "Mamaia"]
[Date "2019.09.22"]
[Round "2.10"]
[White "Cosma, Ioan"]
[Black "Coca, Cristi-Iulian"]
[Result "1/2-1/2"]
[ECO "E63"]
[WhiteElo "2394"]
[BlackElo "2106"]
[Annotator "NA"]
[PlyCount "86"]
[EventDate "2019.09.21"]
[EventType "team-tourn"]
[EventCountry "ROU"]
[SourceTitle "playchess.com"]
[Source "ChessBase"]
[SourceQuality "1"]
[TimeControl "40/5400+30:1800+30"]

1. d4 {[%emt 0:00:00]} Nf6 {[%emt 0:00:00]} 2. Nf3 {[%emt 0:00:00]} g6 {[%emt 0:00:16]} 3. g3 {[%emt 0:00:02]} Bg7 {[%emt 0:00:26]} 4. Bg2 {[%emt 0:00:08]} O-O {[%emt 0:00:23]} 5. O-O {[%emt 0:00:11]} d6 {[%emt 0:00:19]} 6. c4 {[%emt 0:00:11]} Nc6 {[%emt 0:01:37]} 7. Nc3 {[%emt 0:00:12]} a6 {[%emt 0:01:26]} 8. d5 {[%emt 0:00:33]} Na5 {[%emt 0:00:26]} 9. b3 {[%emt 0:00:14]} c5 {[%emt 0:02:28]} 10. dxc6 {[%emt 0:00:37]} Nxc6 {[%emt 0:01:55]} 11. Bb2 {[%emt 0:00:35]} Qa5 {[%emt 0:02:01]} 12. Qc1 {[%emt 0:00:41]} Bf5 {[%emt 0:03:36]} 13. Rd1 {[%emt 0:03:09]} Rfc8 {[%emt 0:13:35]} 14. Nd5 {[%emt 0:03:30]} Nxd5 {[%emt 0:05:19]} 15. Bxg7 {[%emt 0:02:08]} Kxg7 {[%emt 0:03:35]} 16. Rxd5 {[%emt 0:00:09]} Qc7 {[%emt 0:10:21]} 17. Qe3 {[%emt 0:12:46]} Rab8 {[%emt 0:07:06]} 18. h4 {[%emt 0:01:00]} Be6 {[%emt 0:06:29]} 19. Rd2 {[%emt 0:04:13]} h5 {[%emt 0:02:22]} 20. Rad1 {[%emt 0:06:17]} Bg4 {[%emt 0:08:07]} 21. Ng5 {[%emt 0:05:40]} Ne5 {[%emt 0:10:15]} 22. Rd5 {[%emt 0:05:30]} Be6 {[%emt 0:10:29]} 23. R5d4 {[%emt 0:02:38]} Bf5 {[%emt 0:01:15]} 24. Rd5 {[%emt 0:07:40]} Ng4 {[%emt 0:01:08]} 25. Qf4 {[%emt 0:05:35]} Nf6 {[%emt 0:02:44]} 26. R5d2 {[%emt 0:06:53]} b5 {[%emt 0:00:58]} 27. Bd5 {[%emt 0:03:40]} e6 {[%emt 0:01:06]} 28. Bf3 {[%emt 0:00:52]} bxc4 {[%emt 0:00:33]} 29. bxc4 {[%emt 0:00:14]} e5 {[%emt 0:01:26]} 30. Qe3 {[%emt 0:00:17]} Qxc4 {[%emt 0:00:09]} 31. Rxd6 {[%emt 0:00:20]} e4 {[%emt 0:01:06]} 32. Bg2 {[%emt 0:04:28]} Rb2 {[%emt 0:01:12]} 33. Bf1 {[%emt 0:03:25]} Rxa2 {[%emt 0:00:52]} 34. Qf4 {[%emt 0:01:08]} Ng4 {[%emt 0:01:02]} 35. R6d4 {[%emt 0:05:31]} Qc2 {[%emt 0:00:38]} 36. Rd7 {[%emt 0:01:24]} Rf8 {[%emt 0:00:42]} 37. R1d2 {[%emt 0:03:25]} Qb3 {[%emt 0:00:29]} 38. R2d5 {[%emt 0:00:24]} Bxd7 {[%emt 0:00:08]} 39. Rxd7 {[%emt 0:00:19]} Ra1 {[%emt 0:00:27]} 40. Kg2 {[%emt 0:00:00]} Rd1 {[%emt 0:00:00]} 41. Ne6+ {[%emt 0:01:40]} Qxe6 {[%emt 0:04:10]} 42. Rxd1 {[%emt 0:00:06]} e3 {[%emt 0:09:23]} 43. Rd6 {[%emt 0:01:01]} Qe7 {[%emt 0:06:15]} 1/2-1/2

[Event "ROU-chT 1st League 2019"]
[Site "Mamaia"]
[Date "2019.09.22"]
[Round "2.17"]
[White "Stoleriu, George"]
[Black "Zubac, Marius"]
[Result "1-0"]
[ECO "B24"]
[WhiteElo "2351"]
[BlackElo "2135"]
[Annotator "NA"]
[PlyCount "71"]
[EventDate "2019.09.21"]
[EventType "team-tourn"]
[EventCountry "ROU"]
[SourceTitle "playchess.com"]
[Source "ChessBase"]
[SourceQuality "1"]
[TimeControl "40/5400+30:1800+30"]

1. e4 {[%emt 0:00:00]} c5 {[%emt 0:00:00]} 2. Nc3 {[%emt 0:00:00]} Nc6 {[%emt 0:00:00]} 3. Bb5 {[%emt 0:00:00]} g6 {[%emt 0:00:00]} 4. f4 {[%emt 0:01:13]} e5 {[%emt 0:13:35]} 5. fxe5 {[%emt 0:04:28]} Bg7 {[%emt 0:02:12]} 6. Nf3 {[%emt 0:01:21]} Nge7 {[%emt 0:04:04]} 7. d3 {[%emt 0:06:43]} O-O {[%emt 0:03:49]} 8. Bg5 {[%emt 0:03:44]} Nxe5 {[%emt 0:09:00]} 9. Nxe5 {[%emt 0:01:47]} Bxe5 {[%emt 0:00:11]} 10. O-O {[%emt 0:00:21]} a6 {[%emt 0:38:47]} 11. Bc4 {[%emt 0:01:57]} b5 {[%emt 0:01:11]} 12. Nd5 {[%emt 0:01:11]} Nxd5 {[%emt 0:01:29]} 13. Bxd8 {[%emt 0:00:45]} Ne3 {[%emt 0:00:02]} 14. Qf3 {[%emt 0:03:48]} bxc4 {[%emt 0:00:02]} 15. Be7 {[%emt 0:03:48]} Nxf1 {[%emt 0:00:06]} 16. Rxf1 {[%emt 0:00:13]} Bb7 {[%emt 0:00:20]} 17. Bxf8 {[%emt 0:01:40]} Rxf8 {[%emt 0:00:02]} 18. Qg4 {[%emt 0:02:03]} cxd3 {[%emt 0:01:51]} 19. cxd3 {[%emt 0:03:23]} Bc6 {[%emt 0:00:10]} 20. b3 {[%emt 0:01:26]} Bb5 {[%emt 0:01:53]} 21. Rf3 {[%emt 0:01:17]} Kg7 {[%emt 0:01:00]} 22. Qh4 {[%emt 0:02:10]} f6 {[%emt 0:00:33]} 23. Rh3 {[%emt 0:00:56]} h5 {[%emt 0:00:11]} 24. g4 {[%emt 0:06:12]} Rh8 {[%emt 0:00:17]} 25. g5 {[%emt 0:00:34]} Rf8 {[%emt 0:00:02]} 26. gxf6+ {[%emt 0:01:02]} Rxf6 {[%emt 0:00:13]} 27. Kg2 {[%emt 0:01:46]} d6 {[%emt 0:01:58]} 28. a4 {[%emt 0:01:04]} Bd7 {[%emt 0:01:17]} 29. Rf3 {[%emt 0:00:04]} Rxf3 {[%emt 0:02:21]} 30. Kxf3 {[%emt 0:00:06]} Bg4+ {[%emt 0:00:06]} 31. Kg2 {[%emt 0:03:19]} Bd1 {[%emt 0:01:27]} 32. Qh3 {[%emt 0:00:24]} a5 {[%emt 0:04:54]} 33. Qd7+ {[%emt 0:00:51]} Kh6 {[%emt 0:00:02]} 34. Qd8 {[%emt 0:00:41]} Bc2 {[%emt 0:01:58]} 35. Qxa5 {[%emt 0:00:06]} Bxd3 {[%emt 0:00:04]} 36. Qd2+ {[%emt 0:00:03]} 1-0

[Event "ROU-chT 1st League 2019"]
[Site "Mamaia"]
[Date "2019.09.22"]
[Round "2.27"]
[White "Vrencian, Lehel"]
[Black "Ciorgovean, Iustin"]
[Result "1/2-1/2"]
[ECO "C15"]
[WhiteElo "2306"]
[BlackElo "2331"]
[Annotator "NA"]
[PlyCount "195"]
[EventDate "2019.09.21"]
[EventType "team-tourn"]
[EventCountry "ROU"]
[SourceTitle "playchess.com"]
[Source "ChessBase"]
[SourceQuality "1"]
[TimeControl "40/5400+30:1800+30"]

1. e4 {[%emt 0:03:34]} e6 {[%emt 0:00:00]} 2. d4 {[%emt 0:00:39]} d5 {[%emt 0:00:00]} 3. Nc3 {[%emt 0:00:08]} Bb4 {[%emt 0:00:00]} 4. exd5 {[%emt 0:00:09]} exd5 {[%emt 0:00:00]} 5. Bd3 {[%emt 0:00:08]} Nc6 {[%emt 0:00:30]} 6. Nge2 {[%emt 0:00:43]} Nge7 {[%emt 0:00:51]} 7. O-O {[%emt 0:02:06]} Bg4 {[%emt 0:05:48]} 8. a3 {[%emt 0:05:55]} Ba5 {[%emt 0:02:18]} 9. f3 {[%emt 0:00:20]} Bf5 {[%emt 0:03:10]} 10. Na4 {[%emt 0:00:12]} O-O {[%emt 0:02:54]} 11. Bg5 {[%emt 0:07:00]} f6 {[%emt 0:09:53]} 12. Be3 {[%emt 0:00:35]} Re8 {[%emt 0:09:50]} 13. Bf2 {[%emt 0:01:57]} Bb6 {[%emt 0:03:17]} 14. Re1 {[%emt 0:04:36]} Qd7 {[%emt 0:04:18]} 15. Bb5 {[%emt 0:08:13]} a6 {[%emt 0:10:17]} 16. Nxb6 {[%emt 0:02:30]} cxb6 {[%emt 0:00:32]} 17. Bd3 {[%emt 0:00:28]} b5 {[%emt 0:01:14]} 18. Nf4 {[%emt 0:01:20]} Ng6 {[%emt 0:09:07]} 19. Rxe8+ {[%emt 0:05:07]} Rxe8 {[%emt 0:00:11]} 20. Nxg6 {[%emt 0:00:06]} Bxg6 {[%emt 0:00:19]} 21. Bf1 {[%emt 0:00:11]} Na5 {[%emt 0:01:54]} 22. c3 {[%emt 0:32:36]} Nc4 {[%emt 0:03:51]} 23. b3 {[%emt 0:02:31]} Ne3 {[%emt 0:01:40]} 24. Bxe3 {[%emt 0:00:07]} Rxe3 {[%emt 0:00:04]} 25. Qd2 {[%emt 0:00:17]} Re8 {[%emt 0:01:03]} 26. a4 {[%emt 0:00:36]} bxa4 {[%emt 0:00:09]} 27. Rxa4 {[%emt 0:00:08]} Qc7 {[%emt 0:04:30]} 28. c4 {[%emt 0:02:07]} dxc4 {[%emt 0:00:07]} 29. bxc4 {[%emt 0:02:07]} Rd8 {[%emt 0:03:24]} 30. c5 {[%emt 0:01:43]} Bf7 {[%emt 0:01:02]} 31. Qb2 {[%emt 0:01:14]} Qd7 {[%emt 0:02:48]} 32. Rb4 {[%emt 0:00:44]} Bd5 {[%emt 0:00:05]} 33. Rb6 {[%emt 0:04:59]} Qe7 {[%emt 0:03:52]} 34. Qc3 {[%emt 0:00:12]} g6 {[%emt 0:02:26]} 35. Bc4 {[%emt 0:02:59]} Kg7 {[%emt 0:01:39]} 36. Bxd5 {[%emt 0:02:04]} Rxd5 {[%emt 0:00:04]} 37. h3 {[%emt 0:00:23]} Rd7 {[%emt 0:04:17]} 38. Kh2 {[%emt 0:01:53]} Qf7 {[%emt 0:03:37]} 39. Qe3 {[%emt 0:05:33]} Qd5 {[%emt 0:01:04]} 40. Qf4 {[%emt 0:00:00]} Qxd4 {[%emt 0:00:00]} 41. Qxd4 {[%emt 0:02:09]} Rxd4 {[%emt 0:00:36]} 42. Rxb7+ {[%emt 0:00:07]} Kh6 {[%emt 0:01:12]} 43. Rb6 {[%emt 0:02:35]} Rc4 {[%emt 0:00:49]} 44. Rxa6 {[%emt 0:00:30]} Rxc5 {[%emt 0:00:08]} 45. Rxf6 {[%emt 0:00:05]} Kg7 {[%emt 0:01:07]} 46. Ra6 {[%emt 0:00:07]} h5 {[%emt 0:00:42]} 47. Kg3 {[%emt 0:01:26]} Rg5+ {[%emt 0:01:12]} 48. Kf2 {[%emt 0:00:12]} Rb5 {[%emt 0:00:05]} 49. Ke3 {[%emt 0:06:54]} Rb2 {[%emt 0:01:51]} 50. g4 {[%emt 0:03:47]} hxg4 {[%emt 0:01:12]} 51. hxg4 {[%emt 0:00:06]} Rb4 {[%emt 0:00:28]} 52. Rd6 {[%emt 0:00:37]} Ra4 {[%emt 0:00:44]} 53. Rd4 {[%emt 0:02:08]} Ra6 {[%emt 0:00:54]} 54. f4 {[%emt 0:03:30]} Re6+ {[%emt 0:01:05]} 55. Kf3 {[%emt 0:00:28]} Ra6 {[%emt 0:00:12]} 56. Ke4 {[%emt 0:01:14]} Re6+ {[%emt 0:01:49]} 57. Kd5 {[%emt 0:00:55]} Re8 {[%emt 0:00:48]} 58. Rc4 {[%emt 0:02:21]} Rd8+ {[%emt 0:01:50]} 59. Ke5 {[%emt 0:00:14]} Re8+ {[%emt 0:00:07]} 60. Kd6 {[%emt 0:00:05]} Re1 {[%emt 0:00:26]} 61. Rc7+ {[%emt 0:03:33]} Kf8 {[%emt 0:00:33]} 62. Kd5 {[%emt 0:05:29]} Re2 {[%emt 0:00:33]} 63. Ra7 {[%emt 0:02:36]} Re1 {[%emt 0:00:17]} 64. Rb7 {[%emt 0:00:05]} Re2 {[%emt 0:00:10]} 65. Rb6 {[%emt 0:00:15]} Kf7 {[%emt 0:00:12]} 66. Rb7+ {[%emt 0:00:08]} Kf8 {[%emt 0:00:12]} 67. Rb4 {[%emt 0:01:48]} Kf7 {[%emt 0:00:31]} 68. Ra4 {[%emt 0:00:15]} Re1 {[%emt 0:00:23]} 69. Ra7+ {[%emt 0:00:49]} Kf8 {[%emt 0:00:13]} 70. Ra4 {[%emt 0:00:10]} Kf7 {[%emt 0:00:17]} 71. Re4 {[%emt 0:00:06]} Ra1 {[%emt 0:00:38]} 72. Rc4 {[%emt 0:00:32]} Re1 {[%emt 0:00:48]} 73. Rc7+ {[%emt 0:00:29]} Kf8 {[%emt 0:00:05]} 74. Rc2 {[%emt 0:00:20]} Kf7 {[%emt 0:00:21]} 75. Rc7+ {[%emt 0:02:15]} Kf8 {[%emt 0:00:05]} 76. g5 {[%emt 0:00:22]} Re2 {[%emt 0:01:20]} 77. Rc6 {[%emt 0:00:12]} Kf7 {[%emt 0:00:21]} 78. Rf6+ {[%emt 0:00:06]} Kg7 {[%emt 0:00:05]} 79. Re6 {[%emt 0:00:15]} Rd2+ {[%emt 0:01:38]} 80. Kc5 {[%emt 0:00:36]} Kf7 {[%emt 0:00:32]} 81. Rf6+ {[%emt 0:00:15]} Kg7 {[%emt 0:00:11]} 82. Rd6 {[%emt 0:00:17]} Re2 {[%emt 0:02:19]} 83. Rd4 {[%emt 0:00:32]} Kf7 {[%emt 0:00:54]} 84. Kd5 {[%emt 0:00:31]} Re1 {[%emt 0:01:17]} 85. Rd2 {[%emt 0:00:17]} Re8 {[%emt 0:00:36]} 86. Ra2 {[%emt 0:00:34]} Re1 {[%emt 0:00:34]} 87. Ra7+ {[%emt 0:00:30]} Kf8 {[%emt 0:00:10]} 88. Rb7 {[%emt 0:00:14]} Re2 {[%emt 0:00:10]} 89. Rb4 {[%emt 0:00:36]} Kf7 {[%emt 0:00:49]} 90. Kd6 {[%emt 0:00:30]} Re1 {[%emt 0:01:37]} 91. Rb7+ {[%emt 0:01:08]} Kf8 {[%emt 0:00:06]} 92. Kd5 {[%emt 0:00:59]} Re2 {[%emt 0:00:14]} 93. Rd7 {[%emt 0:00:26]} Re1 {[%emt 0:00:23]} 94. Rd6 {[%emt 0:00:38]} Kf7 {[%emt 0:00:06]} 95. Rf6+ {[%emt 0:00:09]} Kg7 {[%emt 0:00:08]} 96. Kd6 {[%emt 0:00:07]} Re4 {[%emt 0:01:43]} 97. Kd7 {[%emt 0:00:15]} Ra4 {[%emt 0:00:47]} 98. Kd6 {[%emt 0:00:28]} 1/2-1/2

[Event "ROU-chT 1st League 2019"]
[Site "Mamaia"]
[Date "2019.09.22"]
[Round "2.28"]
[White "Barzanu, Iulian"]
[Black "Dicu, Razvan-Stefan"]
[Result "1/2-1/2"]
[ECO "A00"]
[WhiteElo "2187"]
[BlackElo "2291"]
[Annotator "NA"]
[PlyCount "146"]
[EventDate "2019.09.21"]
[EventType "team-tourn"]
[EventCountry "ROU"]
[SourceTitle "playchess.com"]
[Source "ChessBase"]
[SourceQuality "1"]
[TimeControl "40/5400+30:1800+30"]

1. g3 {[%emt 0:00:00]} Nf6 {[%emt 0:05:20]} 2. Bg2 {[%emt 0:00:00]} d5 {[%emt 0:00:43]} 3. d4 {[%emt 0:01:53]} c6 {[%emt 0:01:07]} 4. Nf3 {[%emt 0:00:56]} Bf5 {[%emt 0:03:17]} 5. O-O {[%emt 0:01:19]} e6 {[%emt 0:00:26]} 6. c4 {[%emt 0:05:42]} Nbd7 {[%emt 0:03:45]} 7. b3 {[%emt 0:09:37]} Bd6 {[%emt 0:02:09]} 8. Bb2 {[%emt 0:03:57]} Qb8 {[%emt 0:02:11]} 9. Nc3 {[%emt 0:04:24]} b5 {[%emt 0:12:48]} 10. cxb5 {[%emt 0:17:26]} cxb5 {[%emt 0:00:15]} 11. Nh4 {[%emt 0:05:51]} Bg4 {[%emt 0:02:34]} 12. Qd3 {[%emt 0:00:56]} g5 {[%emt 0:16:17]} 13. Nf3 {[%emt 0:07:25]} b4 {[%emt 0:00:12]} 14. Nb5 {[%emt 0:04:50]} Be7 {[%emt 0:01:23]} 15. Rac1 {[%emt 0:00:57]} Bf5 {[%emt 0:04:41]} 16. Nc7+ {[%emt 0:00:49]} Qxc7 {[%emt 0:00:17]} 17. Rxc7 {[%emt 0:00:10]} Bxd3 {[%emt 0:00:08]} 18. exd3 {[%emt 0:00:17]} Bd8 {[%emt 0:13:20]} 19. Rc2 {[%emt 0:16:03]} g4 {[%emt 0:01:37]} 20. Ne5 {[%emt 0:00:17]} Nxe5 {[%emt 0:00:06]} 21. dxe5 {[%emt 0:00:05]} Nd7 {[%emt 0:00:05]} 22. Rfc1 {[%emt 0:05:37]} Bg5 {[%emt 0:09:40]} 23. Rc8+ {[%emt 0:01:35]} Ke7 {[%emt 0:00:04]} 24. Rxh8 {[%emt 0:00:13]} Rxh8 {[%emt 0:00:07]} 25. Rc7 {[%emt 0:00:31]} Ra8 {[%emt 0:00:08]} 26. Bf1 {[%emt 0:04:18]} a5 {[%emt 0:01:02]} 27. a4 {[%emt 0:02:55]} bxa3 {[%emt 0:00:19]} 28. Bxa3+ {[%emt 0:00:06]} Kd8 {[%emt 0:00:06]} 29. Bd6 {[%emt 0:00:07]} Be7 {[%emt 0:05:28]} 30. d4 {[%emt 0:00:19]} Bxd6 {[%emt 0:00:07]} 31. exd6 {[%emt 0:00:02]} Rb8 {[%emt 0:00:08]} 32. Ba6 {[%emt 0:05:10]} e5 {[%emt 0:00:06]} 33. dxe5 {[%emt 0:01:56]} Nxe5 {[%emt 0:00:05]} 34. Bb7 {[%emt 0:00:42]} Nf3+ {[%emt 0:07:56]} 35. Kf1 {[%emt 0:00:12]} Nd2+ {[%emt 0:05:52]} 36. Ke1 {[%emt 0:00:49]} Ne4 {[%emt 0:01:16]} 37. Rxf7 {[%emt 0:00:30]} Nxd6 {[%emt 0:00:10]} 38. Rf8+ {[%emt 0:00:14]} Ne8 {[%emt 0:00:15]} 39. Bxd5 {[%emt 0:00:15]} Ke7 {[%emt 0:00:21]} 40. Rf7+ {[%emt 0:00:00]} Kd6 {[%emt 0:00:00]} 41. Bc4 {[%emt 0:00:54]} Kc5 {[%emt 0:05:44]} 42. Rf5+ {[%emt 0:03:50]} Kb4 {[%emt 0:00:08]} 43. Rf4 {[%emt 0:00:09]} Nd6 {[%emt 0:00:11]} 44. Be6+ {[%emt 0:02:41]} Kc3 {[%emt 0:00:05]} 45. Kf1 {[%emt 0:01:39]} h5 {[%emt 0:01:54]} 46. f3 {[%emt 0:10:30]} Re8 {[%emt 0:02:22]} 47. Bd7 {[%emt 0:01:52]} Re7 {[%emt 0:00:49]} 48. Ba4 {[%emt 0:00:48]} gxf3 {[%emt 0:02:22]} 49. Rxf3+ {[%emt 0:00:10]} Kd4 {[%emt 0:04:40]} 50. Rf6 {[%emt 0:00:36]} Ne4 {[%emt 0:01:02]} 51. Rf5 {[%emt 0:00:57]} h4 {[%emt 0:09:44]} 52. gxh4 {[%emt 0:00:51]} Re5 {[%emt 0:00:06]} 53. Rf4 {[%emt 0:02:25]} Ke3 {[%emt 0:00:33]} 54. Rf8 {[%emt 0:00:30]} Rh5 {[%emt 0:07:25]} 55. Kg2 {[%emt 0:09:33]} Rxh4 {[%emt 0:00:29]} 56. Rf3+ {[%emt 0:01:30]} Kd4 {[%emt 0:00:15]} 57. Rf5 {[%emt 0:00:07]} Nc5 {[%emt 0:03:16]} 58. Kg3 {[%emt 0:00:07]} Rh8 {[%emt 0:00:21]} 59. h4 {[%emt 0:00:44]} Ne4+ {[%emt 0:00:43]} 60. Kh3 {[%emt 0:00:24]} Ke3 {[%emt 0:01:19]} 61. h5 {[%emt 0:01:16]} Nd6 {[%emt 0:00:38]} 62. Rxa5 {[%emt 0:00:13]} Kf4 {[%emt 0:00:03]} 63. Bd7 {[%emt 0:00:32]} Rh7 {[%emt 0:00:51]} 64. Bg4 {[%emt 0:00:34]} Rc7 {[%emt 0:00:28]} 65. Kh4 {[%emt 0:00:28]} Rg7 {[%emt 0:00:25]} 66. Ra4+ {[%emt 0:00:39]} Ne4 {[%emt 0:00:04]} 67. Rxe4+ Kxe4 {[%emt 0:00:05]} 68. h6 {[%emt 0:00:37]} Rb7 {[%emt 0:00:26]} 69. Kg5 {[%emt 0:00:58]} Rxb3 {[%emt 0:00:25]} 70. h7 Rb8 {[%emt 0:00:07]} 71. Be6 {[%emt 0:00:49]} Rh8 {[%emt 0:00:04]} 72. Bg8 {[%emt 0:00:15]} Rxh7 {[%emt 0:00:05]} 73. Bxh7+ Ke5 1/2-1/2

[Event "ROU-chT 1st League 2019"]
[Site "Mamaia"]
[Date "2019.09.22"]
[Round "2.29"]
[White "Pop, Alexandru"]
[Black "Prodileanu, Adrian"]
[Result "1/2-1/2"]
[ECO "A40"]
[WhiteElo "2274"]
[BlackElo "2236"]
[Annotator "NA"]
[PlyCount "53"]
[EventDate "2019.09.21"]
[EventType "team-tourn"]
[EventCountry "ROU"]
[SourceTitle "playchess.com"]
[Source "ChessBase"]
[SourceQuality "1"]
[TimeControl "40/5400+30:1800+30"]

1. d4 {[%emt 0:04:39]} Nf6 {[%emt 0:00:00]} 2. c4 {[%emt 0:02:16]} e6 {[%emt 0:00:13]} 3. g3 {[%emt 0:00:11]} Bb4+ {[%emt 0:00:36]} 4. Bd2 {[%emt 0:00:19]} Bxd2+ {[%emt 0:00:07]} 5. Qxd2 {[%emt 0:00:15]} d5 {[%emt 0:00:10]} 6. Bg2 {[%emt 0:00:39]} Nbd7 {[%emt 0:00:39]} 7. Nf3 {[%emt 0:01:45]} c6 {[%emt 0:00:20]} 8. Qc2 {[%emt 0:04:14]} b6 {[%emt 0:00:36]} 9. O-O {[%emt 0:00:11]} O-O {[%emt 0:00:09]} 10. Nbd2 {[%emt 0:04:10]} Bb7 {[%emt 0:00:34]} 11. Rfd1 {[%emt 0:02:37]} Qe7 {[%emt 0:05:19]} 12. e4 {[%emt 0:02:01]} dxe4 {[%emt 0:05:26]} 13. Nxe4 {[%emt 0:00:12]} c5 {[%emt 0:00:43]} 14. Ne5 {[%emt 0:09:57]} Nxe5 {[%emt 0:22:02]} 15. dxe5 {[%emt 0:06:03]} Nxe4 {[%emt 0:00:53]} 16. Bxe4 {[%emt 0:00:10]} Bxe4 {[%emt 0:01:13]} 17. Qxe4 {[%emt 0:00:05]} Rad8 {[%emt 0:00:46]} 18. Qc6 {[%emt 0:00:43]} Rd4 {[%emt 0:01:56]} 19. Rxd4 {[%emt 0:04:31]} cxd4 {[%emt 0:00:07]} 20. Rd1 {[%emt 0:05:44]} Rd8 {[%emt 0:01:03]} 21. Qe4 {[%emt 0:01:34]} Qc5 {[%emt 0:01:27]} 22. b3 {[%emt 0:00:21]} h6 {[%emt 0:08:54]} 23. Rd3 {[%emt 0:08:29]} a6 {[%emt 0:01:50]} 24. Qh4 {[%emt 0:22:21]} Rd7 {[%emt 0:01:55]} 25. Qe4 {[%emt 0:00:07]} Rd8 {[%emt 0:01:23]} 26. Qh4 {[%emt 0:01:37]} Rd7 {[%emt 0:00:08]} 27. Qe4 1/2-1/2

[Event "ROU-chT 1st League 2019"]
[Site "Mamaia"]
[Date "2019.09.22"]
[Round "2.30"]
[White "Micu, Iulian"]
[Black "Ciorica, Mihai-Vlad"]
[Result "1-0"]
[ECO "B31"]
[WhiteElo "2165"]
[BlackElo "1985"]
[Annotator "NA"]
[PlyCount "97"]
[EventDate "2019.09.21"]
[EventType "team-tourn"]
[EventCountry "ROU"]
[SourceTitle "playchess.com"]
[Source "ChessBase"]
[SourceQuality "1"]
[TimeControl "40/5400+30:1800+30"]

1. e4 c5 {[%emt 0:04:24]} 2. Nf3 {[%emt 0:00:15]} Nc6 {[%emt 0:00:08]} 3. Bb5 {[%emt 0:00:39]} g6 {[%emt 0:00:07]} 4. Bxc6 {[%emt 0:00:20]} dxc6 {[%emt 0:00:08]} 5. d3 {[%emt 0:00:21]} Bg7 {[%emt 0:00:08]} 6. h3 {[%emt 0:00:18]} Nf6 {[%emt 0:00:21]} 7. Nc3 {[%emt 0:00:57]} Nd7 {[%emt 0:00:44]} 8. Be3 {[%emt 0:02:36]} e5 {[%emt 0:00:11]} 9. Qd2 {[%emt 0:02:39]} O-O {[%emt 0:00:23]} 10. O-O-O {[%emt 0:04:18]} b6 {[%emt 0:01:13]} 11. Bh6 {[%emt 0:02:43]} Bxh6 {[%emt 0:01:34]} 12. Qxh6 {[%emt 0:00:19]} Qf6 {[%emt 0:00:02]} 13. Ne2 {[%emt 0:08:51]} Re8 {[%emt 0:01:44]} 14. Rdf1 {[%emt 0:15:34]} Nf8 {[%emt 0:02:20]} 15. Nd2 {[%emt 0:00:34]} Qg7 {[%emt 0:08:35]} 16. Qe3 {[%emt 0:02:39]} Ne6 {[%emt 0:00:06]} 17. g3 {[%emt 0:01:15]} Nd4 {[%emt 0:00:57]} 18. f4 {[%emt 0:00:39]} Nxe2+ {[%emt 0:00:31]} 19. Qxe2 {[%emt 0:00:04]} exf4 {[%emt 0:00:51]} 20. gxf4 {[%emt 0:00:19]} f5 {[%emt 0:00:07]} 21. e5 {[%emt 0:01:03]} Be6 {[%emt 0:00:53]} 22. h4 {[%emt 0:01:17]} h5 {[%emt 0:05:12]} 23. Rhg1 {[%emt 0:01:16]} Kh7 {[%emt 0:01:10]} 24. Rg3 {[%emt 0:00:46]} Rg8 {[%emt 0:00:36]} 25. Rfg1 {[%emt 0:03:11]} Qe7 {[%emt 0:00:27]} 26. Nf3 {[%emt 0:00:43]} Rad8 {[%emt 0:01:46]} 27. Rg5 {[%emt 0:07:09]} Kh6 {[%emt 0:02:37]} 28. Nd2 {[%emt 0:07:43]} Bd5 {[%emt 0:06:29]} 29. Nf1 {[%emt 0:02:34]} Be6 {[%emt 0:02:27]} 30. Qg2 {[%emt 0:02:41]} Qe8 {[%emt 0:00:29]} 31. Ne3 {[%emt 0:01:39]} Kh7 {[%emt 0:01:48]} 32. Nf1 {[%emt 0:04:48]} c4 {[%emt 0:03:56]} 33. dxc4 {[%emt 0:04:19]} Bxc4 {[%emt 0:00:09]} 34. Ng3 {[%emt 0:00:06]} Be6 {[%emt 0:03:40]} 35. Nxh5 {[%emt 0:00:33]} gxh5 {[%emt 0:04:43]} 36. Rg7+ {[%emt 0:00:28]} Kh8 {[%emt 0:00:04]} 37. Qg5 {[%emt 0:00:17]} Rd1+ {[%emt 0:00:08]} 38. Kxd1 {[%emt 0:00:10]} Qd8+ {[%emt 0:00:05]} 39. Qxd8 {[%emt 0:00:20]} Rxd8+ {[%emt 0:00:08]} 40. Kc1 {[%emt 0:00:00]} Bd5 {[%emt 0:00:00]} 41. R7g5 {[%emt 0:03:54]} Bf3 {[%emt 0:02:32]} 42. Rxf5 {[%emt 0:00:25]} Bg4 {[%emt 0:02:57]} 43. Rf7 {[%emt 0:00:39]} Rd4 {[%emt 0:00:25]} 44. f5 {[%emt 0:01:54]} Re4 {[%emt 0:00:53]} 45. e6 {[%emt 0:00:15]} Kg8 {[%emt 0:00:30]} 46. Rxa7 {[%emt 0:00:16]} Re5 {[%emt 0:00:27]} 47. f6 {[%emt 0:01:40]} Rxe6 {[%emt 0:00:24]} 48. f7+ {[%emt 0:00:01]} Kf8 {[%emt 0:00:32]} 49. Rf1 {[%emt 0:00:02]} 1-0

[Event "ROU-chT 1st League 2019"]
[Site "Mamaia"]
[Date "2019.09.23"]
[Round "3.1"]
[White "Musat, Adrian"]
[Black "Rogozenco, Dorian"]
[Result "1/2-1/2"]
[ECO "E92"]
[WhiteElo "2378"]
[BlackElo "2491"]
[Annotator "ChessBase"]
[PlyCount "48"]
[EventDate "2019.09.21"]
[EventType "team-tourn"]
[EventCountry "ROU"]
[SourceTitle "playchess.com"]
[Source "ChessBase"]
[SourceQuality "1"]
[TimeControl "40/5400+30:1800+30"]

1. Nf3 {[%emt 0:00:00]} Nf6 {[%emt 0:00:00]} 2. c4 {[%emt 0:00:00]} g6 {[%emt 0:00:17]} 3. Nc3 {[%emt 0:01:26]} Bg7 {[%emt 0:00:59]} 4. e4 {[%emt 0:00:15]} d6 {[%emt 0:00:20]} 5. d4 {[%emt 0:00:08]} O-O {[%emt 0:00:33]} 6. Be2 {[%emt 0:00:25]} e5 {[%emt 0:01:11]} 7. Be3 {[%emt 0:00:34]} exd4 {[%emt 0:02:25]} 8. Nxd4 {[%emt 0:00:05]} Re8 {[%emt 0:01:05]} 9. f3 {[%emt 0:00:31]} c6 {[%emt 0:00:45]} 10. Bf2 {[%emt 0:03:37]} d5 {[%emt 0:01:49]} 11. exd5 {[%emt 0:01:49]} cxd5 {[%emt 0:00:08]} 12. O-O {[%emt 0:02:08]} Nc6 {[%emt 0:00:20]} 13. c5 {[%emt 0:17:33]} Nh5 {[%emt 0:01:21]} 14. Qd2 {[%emt 0:11:02]} Be5 {[%emt 0:00:28]} 15. g3 {[%emt 0:09:33]} Ng7 {[%emt 0:01:19]} 16. Rfe1 {[%emt 0:20:29]} Ne6 {[%emt 0:07:06]} 17. Nxe6 {[%emt 0:07:11]} Bxe6 {[%emt 0:03:34]} 18. f4 {[%emt 0:01:05]} Bxc3 {[%emt 0:13:35]} 19. bxc3 {[%emt 0:04:32]} Bf5 {[%emt 0:09:08]} 20. Bb5 {[%emt 0:01:06]} Be4 {[%emt 0:07:41]} 21. Bxc6 {[%emt 0:03:05]} bxc6 {[%emt 0:00:11]} 22. Bd4 {[%emt 0:00:18]} f6 {[%emt 0:25:10]} 23. Qf2 {[%emt 0:01:38]} Rb8 {[%emt 0:02:21]} 24. Re2 {[%emt 0:00:33]} Qe7 {[%emt 0:06:57]} 1/2-1/2